Cogmind - Beta 13 @@@ ROGUE MODE // 2024.04.21 @ 06:57:45 Player: Glyb Result: Destroyed by G-47 Trooper with Particle Gun Performance ------------- Evolutions (0) 0 Regions Visited (1) 200 Robots Destroyed (11) 55 Value Destroyed (245) 245 Prototype IDs (0) 0 Alien Tech Used (0) 0 Bonus (0) 0 TOTAL SCORE: 500 Bonus ------- None Cogmind --------- Core Integrity 0/250 Matter 205/300 Energy 215/250 System Corruption 0% Temperature Cool (79) Movement Treading (160) Location -10/Materials Parts ------- > --- POWER (1) -------- Ion Engine > --- PROPULSION (2) --- Light Treads Light Treads > --- UTILITY (2) ------ Medium Storage Unit Structural Scanner > --- WEAPON (2) ------- Mining Laser Mining Laser > --- INVENTORY (10) --- Light Ion Engine Light Treads Compact Wheel Heat Sink Signal Interpreter Terrain Scan Processor Core Shielding Core Shielding Peak State ------------ > --- POWER ------------ Ion Engine > --- PROPULSION ------- Aluminum Leg Aluminum Leg > --- UTILITY ---------- Small Storage Unit Seismic Detector > --- WEAPON ----------- EM Pulse Gun EM Pulse Gun > --- INVENTORY -------- Ion Engine Compact Wheel Compact Wheel [Rating: 7] Favorites ----------- Power Ion Engine Engine Ion Engine Propulsion Aluminum Leg Treads Light Treads Leg Aluminum Leg Wheel Compact Wheel Utility Small Storage Unit Device Seismic Detector Storage Small Storage Unit Weapon EM Pulse Gun Energy Gun EM Pulse Gun Special Weapon Mining Laser Build | -11 -10 ------- Run | Yrd Mat Slots Evolved . | . . Power . | . . Propulsion . | . . Utility . | . . Weapon . | . . Parts Attached 25 | 6 19 Power 3 | 1 2 Engine 3 | 1 2 Core . | . . Reactor . | . . Propulsion 12 | 3 9 Treads 3 | . 3 Leg 8 | 2 6 Wheel 1 | 1 . Hover . | . . Flight . | . . Utility 4 | 1 3 Device 2 | . 2 Storage 2 | 1 1 Processor . | . . Hackware . | . . Protection . | . . Artifact . | . . Weapon 6 | 1 5 Energy Gun 3 | 1 2 Energy Cannon . | . . Ballistic Gun . | . . Ballistic Cannon . | . . Launcher . | . . Special Weapon 3 | . 3 Impact Weapon . | . . Slashing Weapon . | . . Piercing Weapon . | . . Special Melee Weapon . | . . Unidentified Prototypes . | . . Parts Lost 6 | . 6 Power 1 | . 1 Propulsion 1 | . 1 Utility 1 | . 1 Weapon 3 | . 3 Highest Loss Streak 3 | . 3 To Critical Strikes . | . . Average Slot Usage (%) 81 | . 81 Engine 14 | . 14 Treads 9 | . 9 Leg 18 | . 18 Device 10 | . 10 Storage 14 | . 14 Energy Gun 10 | . 10 Special Weapon 3 | . 3 Naked Turns . | . . Heaviest Build 18 | 12 18 Greatest Support 40 | 20 40 Greatest Overweight (x) 3 | . 3 Average Overweight (x) . | . . Largest Inventory Capacity 10 | 8 10 Average Capacity 8 | 6 8 Most Carried 8 | 3 8 Average Carried 5 | 2 5 Final Capacity 10 | 8 10 Final Carried 8 | 3 8 Class Distribution -------------------- 81% | Mutant 18% | Scavenger-Mutant Dominant Class ---------------- Mutant | -10/Materials Resources | -11 -10 ----------- Run | Yrd Mat Matter Collected 325 | 260 65 Remotely . | . . Salvage Created 272 | . 272 Parts 23 | . 23 Haulers Intercepted . | . . Recyclers Shooed . | . . Parts Field Recycled . | . . Retrieved Matter . | . . Parts Self-Destructed . | . . Prevented . | . . Kills | -11 -10 ------- Run | Yrd Mat Combat Hostiles Destroyed 8 | . 8 Melee 4 | . 4 Guns 4 | . 4 Classes Destroyed 5 | . 5 Worker 1 | . 1 Builder 1 | . 1 Watcher 1 | . 1 Swarmer 3 | . 3 Grunt 5 | . 5 Best Kill Streak 3 | . 3 Combat Bots Only 3 | . 3 Max Kills in Single Turn 1 | . 1 Gunslinging . | . . Exploded . | . . Melee 1 | . 1 Uniques/NPCs Destroyed . | . . Combat | -11 -10 -------- Run | Yrd Mat Hostile Shots Fired 114 | . 114 Missed 27 | . 27 Damage Taken 917 | . 917 Core 250 | . 250 Absorbed by Shields . | . . Core Remaining (%) 100 | 100 . Volleys Fired 58 | . 58 Largest 2 | . 2 Hottest 200 | . 200 Shots Fired 66 | . 66 Gun 64 | . 64 Cannon . | . . Launcher . | . . Special 2 | . 2 Kinetic . | . . Thermal 52 | . 52 Explosive . | . . Electromagnetic 14 | . 14 Robot Hit Streak 12 | . 12 Robot Miss Streak 4 | . 4 Penetration Max . | . . Secondary Targets . | . . Shots Hit Robots 40 | . 40 Core Hits 31 | . 31 Critical Kills . | . . Critical Parts Destroyed . | . . Critical Strikes . | . . Melee Attacks . | . . Impact . | . . Slashing . | . . Piercing . | . . Sneak Attacks . | . . Combat Hostiles . | . . Follow-up Attacks . | . . Damage Inflicted 584 | . 584 Guns 467 | . 467 Cannons . | . . Explosions . | . . Melee . | . . Ramming 69 | . 69 Kinetic . | . . Thermal 387 | . 387 Explosive . | . . Electromagnetic 128 | . 128 Impact . | . . Slashing . | . . Piercing . | . . Highest Corruption . | . . Average Corruption . | . . Corruption Purged . | . . Corruption Blocked . | . . Overload Shots . | . . Overflow Damage . | . . Projectiles . | . . Explosions . | . . Melee . | . . Knockbacks . | . . Impact . | . . Kinetic . | . . Secondary . | . . Self-Inflicted Damage . | . . Shots . | . . Rammed 1 | . 1 Targets Rammed 28 | . 28 Kicked 27 | . 27 Crushed . | . . Highest Temperature 99 | . 99 Average Temperature 32 | . 32 Received Heat Transfer 336 | . 336 Siege Activations . | . . Robots Corrupted . | . . Combat Hostiles . | . . Parts Fried 1 | . 1 Impact Corruptions . | . . Robots Melted . | . . Combat Hostiles . | . . Parts Melted . | . . Heat Transferred 875 | . 875 Parts Sabotaged . | . . Parts Stolen . | . . Parts Stripped . | . . Power Chain Reactions . | . . Alert | -11 -10 ------- Run | Yrd Mat Peak Influence 112 | . 112 Initial . | . . Average 31 | . 33 Maximum Alert Level . | . . Low Security (%) 100 | 100 100 Level 1 . | . . Level 2 . | . . Level 3 . | . . Level 4 . | . . Level 5 . | . . High Security . | . . Max Security . | . . Squads Dispatched 1 | . 1 Investigation 1 | . 1 Extermination . | . . Reinforcement . | . . Assault . | . . Garrison . | . . Intercept . | . . Searches Triggered . | . . Construction Impeded . | . . Haulers Reinforced . | . . Active Scanning Responses . | . . Cargo Convoy Interrupts . | . . Stealth | -11 -10 --------- Run | Yrd Mat Distress Signals 2 | . 2 Communications Jammed . | . . Distress Signals . | . . Times Spotted 20 | . 20 Peak Tracking Total 5 | . 5 Tactical Retreats 2 | . 2 Traps | -11 -10 ------- Run | Yrd Mat Traps Triggered 2 | . 2 Indirectly . | . . Trap Hack Attempts . | . . Triggered . | . . Disarmed . | . . Reprogrammed . | . . Reused . | . . Traps Extracted . | . . Installed . | . . Triggered . | . . Machines | -11 -10 ---------- Run | Yrd Mat Machines Disabled 1 | . 1 Max in Single Turn 1 | . 1 Machines Repaired . | . . Machines Dismantled . | . . Machines Sabotaged . | . . Overloaded Fab Kills . | . . Hacking | -11 -10 --------- Run | Yrd Mat Machines Accessed 5 | . 5 Terminals 5 | . 5 Fabricators . | . . Repair Stations . | . . Recycling Units . | . . Scanalyzers . | . . Garrison Access . | . . Total Hacks 15 | . 15 Successful 9 | . 9 Failed 6 | . 6 Catastrophic . | . . Database Lockouts . | . . Manual 1 | . 1 Terminals 15 | . 15 Fabricators . | . . Repair Stations . | . . Recycling Units . | . . Scanalyzers . | . . Garrison Access . | . . Terminal Hacks 9 | . 9 Alert Level 1 | . 1 Unreport Threat 1 | . 1 Dispatch Records 1 | . 1 Surveillance Status 1 | . 1 Patrol Status 1 | . 1 Transport Status 1 | . 1 Hauler Manifests 1 | . 1 Registered Components 1 | . 1 Zone Layout 1 | . 1 Fabricator Hacks . | . . Repair Station Hacks . | . . Recycling Unit Hacks . | . . Scanalyzer . | . . Garrison Access Hacks . | . . Unauthorized Hacks . | . . Terminals . | . . Fabricators . | . . Repair Stations . | . . Recycling Units . | . . Scanalyzers . | . . Garrison Access . | . . Data Cores Recovered . | . . Used . | . . Hacking Detections 3 | . 3 Full Trace Events . | . . Feedback Events . | . . Feedback Blocked . | . . Robot Schematics Acquired . | . . Robots Built . | . . Authchips . | . . Time . | . . Total Robot Build Rating . | . . Part Schematics Acquired . | . . Parts Built . | . . Authchips . | . . Time . | . . Total Part Build Rating . | . . Parts Repaired . | . . Time . | . . Parts Recycled . | . . Recycled Matter . | . . Retrieved Matter . | . . Retrieved Components . | . . Parts Scanalyzed . | . . Part Schematics Acquired . | . . Parts Damaged . | . . Bothacking | -11 -10 ------------ Run | Yrd Mat Used RIF Installer . | . . Robots Hacked . | . . Non-combat . | . . Combat . | . . Robot Hacks Applied . | . . Relay Couplers Released . | . . Fabnet Peak Effective % . | . . Robots Rewired . | . . Allies Hacked . | . . Hacks Repelled . | . . Allies | -11 -10 -------- Run | Yrd Mat Total Allies . | . . Largest Group . | . . Highest-Rated Group . | . . Highest-Rated Ally . | . . Total Orders . | . . Ally Attacks . | . . Total Damage . | . . Kills . | . . Allies Corrupted . | . . Allies Melted . | . . Intel | -11 -10 ------- Run | Yrd Mat Robot Analysis Total . | . . Derelict Logs Recovered . | . . Drone Launches . | . . Drone Recoveries . | . . Exploration | -11 -10 ------------- Run | Yrd Mat Turns Passed 934 | 55 879 Spaces Moved 528 | 39 489 Core 4 | 2 2 Treads 172 | . 172 Legs 348 | 33 315 Wheels 4 | 4 . Hover . | . . Flight . | . . Fastest Speed 50 | 50 120 Average Speed 132 | 114 134 Slowest Speed 200 | 120 200 Overloaded Moves . | . . Propulsion Burnouts . | . . Robots Hopped . | . . Cave-ins Triggered . | . . Exploration Rate (%) 30 | 4 57 Regions Visited 1 Branch Regions . Pre-discovered Areas . | . . Known Exits Taken . | . . Unknown Exits Taken 1 | 1 . Scrap Searched . | . . Spaces Dug . | . . Terrain Destroyed . | . . Melee . | . . Projectile . | . . AOE . | . . Terrain Rammed . | . . Walls Destroyed . | . . Machines Disabled . | . . Actions | -11 -10 --------- Run | Yrd Mat Total 679 | 47 632 Wait 20 | . 20 Move 527 | 38 489 Hop . | . . Pick Up 10 | 2 8 Fast Attach 16 | 6 10 Attach 4 | . 4 Detach 5 | 1 4 Swap 5 | . 5 Drop 6 | . 6 Fire 58 | . 58 Melee . | . . Ram . | . . Kick 27 | . 27 Crush 1 | . 1 Escape Stasis . | . . Rewire . | . . Trap . | . . Miscellaneous . | . . Route ------- -11/Scrapyard -10/Materials (discovered 1 exit: [*Min]) History --------- Turn | Location | Event 31 | -11/Scrapyard | Discovered new exit (range 15) 56 | -11/Scrapyard | Entered Materials 304 | -10/Materials | Build established: Mutant 372 | -10/Materials | Lost 3 parts (1p2w) 543 | -10/Materials | Discovered new exit (range 9) 563 | -10/Materials | Core integrity fell below 50% 592 | -10/Materials | Core integrity fell below 20% 935 | -10/Materials | Destroyed by G-47 Trooper with Particle Gun Last Messages --------------- Retrieving dispatch records... Found 5 active squads: 2x Surveillance 1x Patrol 2x Transport >>Enumerate(Surveillance) Retrieving latest reported positions... Found 2 active surveillance squads. Downloaded coordinate data. 00844_ Triggered Blade Trap. 00844_ Massive razor-sharp blades shoot up from within the floor. 00844_ Lgt. Treads severed. 00844_ Mining Laser severed. 00853_ Acquired Mining Laser. 00856_ Acquired Lgt. Treads. 00859_ U-05 Engineer lays Concrete. 00866_ Connecting with Terminal... >>Alert(Check) Current Alert Level: Low Security 00915_ K-01 Serf cleans the Electrolysis Chamber. Map ----- +----------------------------------------------------+ | ???????????????????????????????? | | # ##???????????????????????????????? | | # ##???????????????????????????????? | | # ##???????????????????????????????? | | # ##???????????????????????????????? | | # ##???????????????????????????????? | | # # ????!??????????????????????????? | | # # ???????????????????????????????? | | # # ???????????????????????????????? | | # ???????????????????????????????? | | + ???????????????????????????????? | | # ???????????????????????????????? | | # ???????????????????????????????? | | ## ???????????????????????????????? | | """ ## ???????????????????????????????? | | """ T##???????????????????????????????? | | """ ###???????????????????????????????? | | ###???????????????????????????????? | | ###??????????????????????? # ?????? | | ## ############## # ? # ?????? | | "" ####################### # ?????? | | ## / a r k # # ?????? | | ## ######### """ """ + ???????? | | " < ## !###### """ """ # ?????????? | | # !##?## """ """ # ?????????? | | # !##?## @g # ?????????? | | "" # !##?## ! g # ?????????? | | ## ## ##?## # ?????????? | | !###?## # ?????????? | | ######?############ ?????????? | | #####??############ ?????????? | | ##???????????????????????????? | | ###+#### ###???????????????????????????? | | # ###???????????????????????????? | | "" """ # ##????????????????????????????? | | "" """ # ##????????????????????????????? | | "" """ # ##????????????????????????????? | | # ##????????????????????????????? | | ! # ##????????????????????????????? | | # ##????????????????????????????? | | # ##????????????????????????????? | | #/###### ##????????????##??????????????? | | # ##??## ##????????????# ??????????????? | | # ##??## ##????????????# ??????????????? | | # ##??## ##????????????# ??????????????? | | # ##??## ##????????????# ??????????????? | | #%##??## ##??############??????????????? | | #%##??## ##??# ??????????????? | | #%##??## ##??# ??????????????? | | #%###### ###?# ""??????????????? | +----------------------------------------------------+ Best States ------------- Heat Dissipation 25 Energy Generation 10 Energy Capacity 250 Matter Stores 300 Matter Capacity 300 Sight Range 16 Terrain Scan Density 10 Evasion (%) 55 Recoil Reduction 2 Item Schematics ----------------- None Robot Schematics ------------------ None Fabricated ------------ Nothing Alien Tech Used ----------------- None Achievements -------------- None Challenges ------------ None Game ------ Seed IntegratedHardlightWarhead Manual? 0 Play Time 00:14:01 Cumulative 10.2 hours Start 2024.04.21 @ 06:45:59 End 2024.04.21 @ 06:57:45 Sessions 1 Manual Loads 0 Difficulty Rogue Special Mode None Game No. 12 Rogue 12 Adventurer 0 Explorer 0 Win Type - Total 0 Types 0/0/0/0/0/0/0/0/0 Lore% 13 Gallery% 21 Achievement% 19 Wizard Run 0 Options --------- Layout 0 ASCII 0 Keyboard 1 Movement Numpad Keybinds 0 Fullscreen 2 Font 18/SmallcapsGlow Map View 112x50 Zoom Use 0% Tactical HUD 1 Map Filters NONE Filters NONE Steam 1 RUN: 80087482-585d-43ef-95e7-b926156ade07